{"text_format":"2","workbook":"xlsx","n_sheets":7,"sheets":["ORÇ EDITAL","MEMÓRIA CÁLCULO ETAPA I","MEMÓRIA CÁLCULO ETAPA II","MEM CÁLCULO ETAPA III","Tabela Resumo Etapa III","COMPOSIÇÕES","COTAÇÕES DE QUANTIDADE DE HORAS"],"not_rendered":{"charts":0,"images":1,"macros":0,"external_links":17,"defined_names":4655,"comments":1,"pivot_tables":0},"unopened":[],"bounds":{"document_bytes":16777216,"sheet_cells":100000,"run_cost":"one","rows_first":2000,"rows_last":500,"rows_between":2000,"halvings":0,"cell_chars":16384,"cell_head_chars":4096},"cells_cut":0,"cells_raw":0,"read":"whole","date_system":"1900"}

{"sheet":"ORÇ EDITAL","index":0,"n_rows":42,"n_cols":9,"rows_kept":42,"cut":false,"hidden":false,"merged":[[32,1,32,7],[33,1,33,8],[35,1,35,8],[31,1,31,7],[1,1,1,8],[2,1,2,8],[5,1,5,8],[9,1,9,8],[18,4,18,6],[14,4,14,6],[22,4,22,7]]}
[]
[null,"PREFEITURA  MUNICIPAL DE PORTO ALEGRE "]
[null,"SECRETARIA MUNICIPAL DE SERVIÇOS URBANOS"]
[]
[null,"CONTRATO:"]
[null,"CONTRATAÇÃO DE EMPRESA DE CONSULTORIA TÉCNICA ESPECIALIZADA PARA PRESTAÇÃO DE SERVIÇOS DE VERIFICAÇÃO INDEPENDENTE DO CONTRATO DE CONCESSÃO DOS SERVIÇOS DE ILUMINAÇÃO PÚBLICA"]
[null,"PPP Iluminação Pública de Porto Alegre"]
[]
[]
[null,"ORÇAMENTO ANALÍTICO"]
[]
[]
[null,"ITEM","REFERÊNCIA","CÓDIGO"," DESCRIÇÃO","UNID","QUANT","PREÇO UNITÁRIO","PREÇO TOTAL"]
[null,"01.00",null,null,"CONSULTORIA TÉCNICA ESPECIALIZADA PARA PRESTAÇÃO DE SERVIÇOS DE VERIFICAÇÃO INDEPENDENTE"]
[null,"01.01.00",null,null,"Etapa I - Planejamento e Estruturação (Duração 4 meses) - Regime de Empreitada por Preço Global"]
[null,"01.01.01","ETAPA","I**","PRESTAÇÃO DE SERVIÇOS REFERENTES À ETAPA I - PLANEJAMENTO E ESTRUTURAÇÃO, DE CONSULTORIA ESPECIALIZADA PARA VERIFICAÇÃO INDEPENDENTE","un",1,{"$f":"'MEMÓRIA CÁLCULO ETAPA I'!E50","v":483307.7},{"$f":"G16*H16","v":483307.7}]
[null,"Total do item 01.01.00",{"$nulls":6},{"$f":"SUM(I16)","v":483307.7}]
[]
[null,"01.02.00",null,null,"Etapa II - Gestão e Operação (Duração 56 meses) - Regime de Empreitada por Preço Global"]
[null,"01.02.01","ETAPA","II**","PRESTAÇÃO DE SERVIÇOS REFERENTES À ETAPA II - GESTÃO E OPERAÇÃO, DE CONSULTORIA ESPECIALIZADA PARA VERIFICAÇÃO INDEPENDENTE","un",1,{"$f":"'MEMÓRIA CÁLCULO ETAPA II'!E50","v":2819294.94},{"$f":"G20*H20","v":2819294.94}]
[null,"Total do item 01.02.00",{"$nulls":6},{"$f":"SUM(I20)","v":2819294.94}]
[]
[null,"01.03.00",null,null,"Etapa III - Suporte e Análises Econômico-Financeiras (Sob Demanda) - Regime de Empreitada por Preços Unitários ***"]
[null,"01.03.01","COMPOSIÇÃO","COMP P23*","RELATÓRIO ANÁLISE REEQUILÍBRIO ECONÔMICO FINANCEIRO\n(PRODUTO P23)","un",5,{"$f":"COMPOSIÇÕES!H13","v":3313.92},{"$f":"G24*H24","v":16569.599999999999}]
[null,"01.03.02","COMPOSIÇÃO","COMP P24*","RELATÓRIO ANÁLISE PLANO DE NEGÓCIOS (PRODUTO P24)","un",5,{"$f":"COMPOSIÇÕES!H18","v":1864.08},{"$f":"G25*H25","v":9320.4}]
[null,"01.03.03","COMPOSIÇÃO","COMP P25*","RELATÓRIO MODELAGEM FINANCEIRA (PRODUTO P25)","un",2,{"$f":"COMPOSIÇÕES!H23","v":2692.56},5385.12]
[null,"Total do item 01.03.00",{"$nulls":6},{"$f":"SUM(I24:I26)","v":31275.119999999999}]
[]
[null,"TOTAL GERAL",{"$nulls":6},{"$f":"SUM(I17,I21,I27)","v":3333877.7600000002}]
[]
[]
[null,"* NOTA 1: Custo unitário das composições obtido na aba \"COMPOSIÇÕES\""]
[null,"** NOTA 2: Custo global das Etapas I e II obtidos nas abas \"MEMÓRIA CÁLCULO ETAPA I\" e \"MEMÓRIA CÁLCULO ETAPA II\""]
[null,"*** NOTA 3: A execução dos RELATÓRIOS da Etapa III se dará sob demanda. O CONTRATANTE não se vincula à contratação de uma quantidade mínima dos RELATÓRIOS da Etapa III."]
[]
[null,"COMPILAÇÃO DE VALORES POR ETAPAS E VALOR TOTAL PARA PORTO ALEGRE"]
[]
[null,null,null,"Etapa","Descrição","Valor do CONTRATO (POA)","*Percentual relativo ao valor total do CONTRATO"]
[null,null,null,"I","Planejamento e Estruturação",{"$f":"I17","v":483307.7},{"$f":"Tabela7172126[[#This Row],[Valor do CONTRATO (POA)]]/$F$42","v":0.14496863256318071},null,"'"]
[null,null,null,"II","Gestão e Operação",{"$f":"I21","v":2819294.94},{"$f":"Tabela7172126[[#This Row],[Valor do CONTRATO (POA)]]/$F$42","v":0.84565036361741097}]
[null,null,null,"III","Suporte e Análises Econômico-Financeiras",{"$f":"I27","v":31275.119999999999},{"$f":"Tabela7172126[[#This Row],[Valor do CONTRATO (POA)]]/$F$42","v":9.3810038194081825E-3}]
[{"$nulls":4},"Valor Total do Contrato (POA):",{"$f":"SUBTOTAL(109,Tabela7172126[Valor do CONTRATO (POA)])","v":3333877.7600000002},{"$f":"SUBTOTAL(109,Tabela7172126[*Percentual relativo ao valor total do CONTRATO])","v":0.99999999999999989}]

{"sheet":"MEMÓRIA CÁLCULO ETAPA I","index":1,"n_rows":50,"n_cols":10,"rows_kept":50,"cut":false,"hidden":false,"merged":[[8,1,8,10],[18,1,18,10],[1,1,1,10],[2,1,2,10],[44,5,44,7],[30,2,30,6],[37,2,37,6],[5,1,5,8],[26,5,28,5],[20,6,20,7],[31,7,31,8],[25,7,25,9],[16,2,16,9],[35,2,35,6],[38,7,38,8],[42,2,42,6],[10,1,10,10]]}
[]
[null,"PREFEITURA  MUNICIPAL DE PORTO ALEGRE "]
[null,"SECRETARIA MUNICIPAL DE SERVIÇOS URBANOS"]
[]
[null,"CONTRATO:"]
[null,"CONTRATAÇÃO DE EMPRESA DE CONSULTORIA TÉCNICA ESPECIALIZADA PARA PRESTAÇÃO DE SERVIÇOS DE VERIFICAÇÃO INDEPENDENTE DO CONTRATO DE CONCESSÃO DOS SERVIÇOS DE ILUMINAÇÃO PÚBLICA"]
[null,"PPP Iluminação Pública de Porto Alegre"]
[]
[null,"MEMÓRIA DE CÁLCULO DOS PREÇOS DA ETAPA I - PLANEJAMENTO E ESTRUTURAÇÃO"]
[]
[null,"VALORES DE CONTRATAÇÃO DE VERIFICADOR INDEPENDENTE EM OUTROS MUNICÍPIOS"]
[]
[null,null,"Município","Modalidade e Tipo","Qtde. de pontos de IP","Vencedora","Data Contrato","Valor do CONTRATO","Atualização IPCA para Junho/2021*","Valor do CONTRATO atualizado "]
[null,null,"BELO HORIZONTE","Concorrência técnica e preço",185000,"ERNST & YOUNG","1/12/2017",6999997,0.17876439999999999,{"$f":"TRUNC(H14*(1+I14),2)","v":8251347.2599999998}]
[null,null,"UBERLÂNDIA","Concorrência menor preço",86000,"HOUER","16/04/2020",2633715,7.8803399999999996E-2,{"$f":"TRUNC(H15*(1+I15),2)","v":2841260.69}]
[null,null,"TERESINA","Concorrência técnica e preço",96000,"ERNST & YOUNG","19/11/2020",5163212,6.1023899999999999E-2,{"$f":"TRUNC(H16*(1+I16),2)","v":5478291.3300000001}]
[null,null,"*FONTE: https://www3.bcb.gov.br/CALCIDADAO/publico/exibirFormCorrecaoValores.do?method=exibirFormCorrecaoValores"]
[]
[null,"VALORES RELATIVOS À ETAPA I - PLANEJAMENTO E ESTRUTURAÇÃO"]
[]
[null,null,"Município","Qtde. de pontos de IP no município avaliado","Valor do CONTRATO Atualizado no município avaliado","Valor do CONTRATO relativo à Etapa I - Planejamento e Estruturação\n(12,00%)","NOTA: O valor da Etapa I nas contratações dos municípios pesquisados equivale à 12,00% do valor total do Contrato"]
[null,null,"BELO HORIZONTE",{"$f":"$E$14","v":185000},{"$f":"$J$14","v":8251347.2599999998},{"$f":"Tabela4712172223[[#This Row],[Valor do CONTRATO Atualizado no município avaliado]]*0.12","v":990161.67119999998}]
[null,null,"UBERLÂNDIA",{"$f":"$E$15","v":86000},{"$f":"$J$15","v":2841260.69},{"$f":"Tabela4712172223[[#This Row],[Valor do CONTRATO Atualizado no município avaliado]]*0.12","v":340951.28279999999}]
[null,null,"TERESINA",{"$f":"$E$16","v":96000},{"$f":"$J$16","v":5478291.3300000001},{"$f":"Tabela4712172223[[#This Row],[Valor do CONTRATO Atualizado no município avaliado]]*0.12","v":657394.95959999994}]
[]
[null,null,"Município","Qtde. de pontos de IP no município avaliado","Valor do CONTRATO relativo à Etapa I no município avaliado","Qtde. de pontos de IP em PORTO ALEGRE","Proporcionalização do Valor da Etapa I nos municípios avaliados considerando a quantidade de pontos de IP de PORTO ALEGRE (103.750 pontos)","\nNOTA: Nesta coluna são calculadas as previsões de valores da Etapa I para PORTO ALEGRE, considerando os valores da Etapa I dos municípios avaliados e a proporção da dimensão do parque de POA em relação aos demais municípios."]
[null,null,"BELO HORIZONTE",{"$f":"$E$14","v":185000},{"$f":"F22","v":990161.67119999998},103750,{"$f":"E27*($F$27/D27)","v":555293.36965945945}]
[null,null,"UBERLÂNDIA",{"$f":"$E$15","v":86000},{"$f":"F23","v":340951.28279999999},null,{"$f":"E28*($F$27/D28)","v":411322.04174999997}]
[null,null,"TERESINA",{"$f":"$E$16","v":96000},657394.95959999994,null,710465.90685937495]
[]
[null,null,"AVALIAÇÃO DOS PREÇOS EXCESSIVAMENTE ELEVADOS**"]
[null,null,"Município","Proporcionalização do Valor da Etapa I nos municípios avaliados considerando a quantidade de pontos de IP de PORTO ALEGRE (103.750 pontos)","Média dos demais valores","Percentual em relação à média dos demais preços","Avaliação dos preços EXCESSIVAMENTE ELEVADOS considerando metodologia demonstrada em orientação do STJ**","NOTA: Compara a cotação em análise em relação às médias das demais cotações e a descarta se o resultado for  superior a 30% da média dos demais valores "]
[null,null,"BELO HORIZONTE",{"$f":"G27","v":555293.36965945945},{"$f":"AVERAGE(D34:D35)","v":560893.97430468746},{"$f":"D33/E33","v":0.99001486038039399},"VÁLIDO"]
[null,null,"UBERLÂNDIA",{"$f":"G28","v":411322.04174999997},{"$f":"AVERAGE(D33,D35)","v":632879.63825941714},{"$f":"D34/E34","v":0.64992143353077703},"VÁLIDO"]
[null,null,"TERESINA",{"$f":"G29","v":710465.90685937495},{"$f":"AVERAGE(D33:D34)","v":483307.70570472971},1.4700074061997772,"EXCESSIVO","DESCARTADO"]
[null,null,"** FONTE: https://www.stj.jus.br/publicacaoinstitucional/index.php/MOP/article/view/3495/3618"]
[]
[null,null,"AVALIAÇÃO DOS PREÇOS INEXEQUÍVEIS**"]
[null,null,"Município","Proporcionalização do Valor da Etapa I nos municípios avaliados considerando a quantidade de pontos de IP de PORTO ALEGRE (103.750 pontos)","Média dos demais valores","Percentual em relação à média dos demais preços","Avaliação dos preços INEXEQUÍVEIS considerando metodologia demonstrada em orientação do STJ**","NOTA: Compara a cotação em análise em relação às médias das demais cotações e a descarta se o resultado for inferior a 70% da média dos demais valores "]
[null,null,"BELO HORIZONTE",{"$f":"G27","v":555293.36965945945},{"$f":"AVERAGE(D41)","v":411322.04174999997},{"$f":"D40/E40","v":1.3500209405188277},"VÁLIDO"]
[null,null,"UBERLÂNDIA",{"$f":"G28","v":411322.04174999997},{"$f":"AVERAGE(D40)","v":555293.36965945945},{"$f":"D41/E41","v":0.74072925092235176},"VÁLIDO"]
[null,null,"TERESINA",{"$f":"G29","v":710465.90685937495},{"$f":"AVERAGE(D40:D41)","v":483307.70570472971},1.4700074061997772,"EXCESSIVO","DESCARTADO"]
[null,null,"** FONTE: https://www.stj.jus.br/publicacaoinstitucional/index.php/MOP/article/view/3495/3618"]
[]
[null,null,null,"Município","VALOR DA ETAPA I PORTO ALEGRE (103.750 pontos)","NOTA: Faz a média dos valores considerados válidos nos demais municípios, já proporcionalizados para o tamanho do parque de IP de POA, e o atribui para a Etapa I de Porto Alegre"]
[null,null,null,"BELO HORIZONTE",{"$f":"D40","v":555293.36965945945}]
[null,null,null,"UBERLÂNDIA",{"$f":"D41","v":411322.04174999997}]
[null,null,null,"TERESINA",{"$f":"D42","v":710465.90685937495},"DESCARTADO"]
[null,null,null,"Valor médio Etapa I:",{"$f":"TRUNC(AVERAGE(E46:E47),2)","v":483307.7}]
[null,null,null,"Valor da Etapa I (POA):",{"$f":"E49","v":483307.7}]

{"sheet":"MEMÓRIA CÁLCULO ETAPA II","index":2,"n_rows":50,"n_cols":10,"rows_kept":50,"cut":false,"hidden":false,"merged":[[31,7,31,8],[1,1,1,10],[2,1,2,10],[5,1,5,8],[8,1,8,10],[10,1,10,10],[16,2,16,9],[18,1,18,10],[20,6,20,7],[25,7,25,9],[26,5,28,5],[30,2,30,6],[35,2,35,6],[37,2,37,6],[38,7,38,8],[42,2,42,6],[44,5,44,7]]}
[]
[null,"PREFEITURA  MUNICIPAL DE PORTO ALEGRE "]
[null,"SECRETARIA MUNICIPAL DE SERVIÇOS URBANOS"]
[]
[null,"CONTRATO:"]
[null,"CONTRATAÇÃO DE EMPRESA DE CONSULTORIA TÉCNICA ESPECIALIZADA PARA PRESTAÇÃO DE SERVIÇOS DE VERIFICAÇÃO INDEPENDENTE DO CONTRATO DE CONCESSÃO DOS SERVIÇOS DE ILUMINAÇÃO PÚBLICA"]
[null,"PPP Iluminação Pública de Porto Alegre"]
[]
[null,"MEMÓRIA DE CÁLCULO DOS PREÇOS DA ETAPA II - GESTÃO E OPERAÇÃO"]
[]
[null,"VALORES DE CONTRATAÇÃO DE VERIFICADOR INDEPENDENTE EM OUTROS MUNICÍPIOS"]
[]
[null,null,"Município","Modalidade e Tipo","Qtde. de pontos de IP","Vencedora","Data Contrato","Valor do CONTRATO","Atualização IPCA para Junho/2021*","Valor do CONTRATO atualizado "]
[null,null,"BELO HORIZONTE","Concorrência técnica e preço",185000,"ERNST & YOUNG","1/12/2017",6999997,0.17876439999999999,{"$f":"TRUNC(H14*(1+I14),2)","v":8251347.2599999998}]
[null,null,"UBERLÂNDIA","Concorrência menor preço",86000,"HOUER","16/04/2020",2633715,7.8803399999999996E-2,{"$f":"TRUNC(H15*(1+I15),2)","v":2841260.69}]
[null,null,"TERESINA","Concorrência técnica e preço",96000,"ERNST & YOUNG","19/11/2020",5163212,6.1023899999999999E-2,{"$f":"TRUNC(H16*(1+I16),2)","v":5478291.3300000001}]
[null,null,"*FONTE: https://www3.bcb.gov.br/CALCIDADAO/publico/exibirFormCorrecaoValores.do?method=exibirFormCorrecaoValores"]
[]
[null,"VALORES RELATIVOS À ETAPA II - GESTÃO E OPERAÇÃO"]
[]
[null,null,"Município","Qtde. de pontos de IP no município avaliado","Valor do CONTRATO Atualizado no município avaliado","Valor do CONTRATO relativo à Etapa II - Gestão e Operação\n(70,00%)","NOTA: O valor da Etapa II nas contratações dos municípios pesquisados equivale à 70,00% do valor total do Contrato"]
[null,null,"BELO HORIZONTE",{"$f":"$E$14","v":185000},{"$f":"$J$14","v":8251347.2599999998},{"$f":"Tabela47121722236[[#This Row],[Valor do CONTRATO Atualizado no município avaliado]]*0.7","v":5775943.0819999995}]
[null,null,"UBERLÂNDIA",{"$f":"$E$15","v":86000},{"$f":"$J$15","v":2841260.69},{"$f":"Tabela47121722236[[#This Row],[Valor do CONTRATO Atualizado no município avaliado]]*0.7","v":1988882.4829999998}]
[null,null,"TERESINA",{"$f":"$E$16","v":96000},{"$f":"$J$16","v":5478291.3300000001},{"$f":"Tabela47121722236[[#This Row],[Valor do CONTRATO Atualizado no município avaliado]]*0.7","v":3834803.9309999999}]
[]
[null,null,"Município","Qtde. de pontos de IP no município avaliado","Valor do CONTRATO relativo à Etapa II no município avaliado","Qtde. de pontos de IP em PORTO ALEGRE","Proporcionalização do Valor da Etapa II nos municípios avaliados considerando a quantidade de pontos de IP de PORTO ALEGRE (103.750 pontos)","\nNOTA: Nesta coluna são calculadas as previsões de valores da Etapa II para PORTO ALEGRE, considerando os valores da Etapa II dos municípios avaliados e a proporção da dimensão do parque de POA em relação aos demais municípios."]
[null,null,"BELO HORIZONTE",{"$f":"$E$14","v":185000},{"$f":"F22","v":5775943.0819999995},103750,{"$f":"E27*($F$27/D27)","v":3239211.3230135133}]
[null,null,"UBERLÂNDIA",{"$f":"$E$15","v":86000},{"$f":"F23","v":1988882.4829999998},null,{"$f":"E28*($F$27/D28)","v":2399378.5768749998}]
[null,null,"TERESINA",{"$f":"$E$16","v":96000},3834803.9309999999,null,4144384.4566796878]
[]
[null,null,"AVALIAÇÃO DOS PREÇOS EXCESSIVAMENTE ELEVADOS**"]
[null,null,"Município","Proporcionalização do Valor da Etapa II nos municípios avaliados considerando a quantidade de pontos de IP de PORTO ALEGRE (103.750 pontos)","Média dos demais valores","Percentual em relação à média dos demais preços","Avaliação dos preços EXCESSIVAMENTE ELEVADOS considerando metodologia demonstrada em orientação do STJ**","NOTA: Compara a cotação em análise em relação às médias das demais cotações e a descarta se o resultado for  superior a 30% da média dos demais valores "]
[null,null,"BELO HORIZONTE",{"$f":"G27","v":3239211.3230135133},{"$f":"AVERAGE(D34:D35)","v":3271881.516777344},{"$f":"D33/E33","v":0.99001486038039377},"VÁLIDO"]
[null,null,"UBERLÂNDIA",{"$f":"G28","v":2399378.5768749998},{"$f":"AVERAGE(D33,D35)","v":3691797.8898466006},{"$f":"D34/E34","v":0.64992143353077692},"VÁLIDO"]
[null,null,"TERESINA",{"$f":"G29","v":4144384.4566796878},{"$f":"AVERAGE(D33:D34)","v":2819294.9499442568},1.4700074061997772,"EXCESSIVO","DESCARTADO"]
[null,null,"** FONTE: https://www.stj.jus.br/publicacaoinstitucional/index.php/MOP/article/view/3495/3618"]
[]
[null,null,"AVALIAÇÃO DOS PREÇOS INEXEQUÍVEIS**"]
[null,null,"Município","Proporcionalização do Valor da Etapa II nos municípios avaliados considerando a quantidade de pontos de IP de PORTO ALEGRE (103.750 pontos)","Média dos demais valores","Percentual em relação à média dos demais preços","Avaliação dos preços INEXEQUÍVEIS considerando metodologia demonstrada em orientação do STJ**","NOTA: Compara a cotação em análise em relação às médias das demais cotações e a descarta se o resultado for inferior a 70% da média dos demais valores "]
[null,null,"BELO HORIZONTE",{"$f":"G27","v":3239211.3230135133},{"$f":"AVERAGE(D41)","v":2399378.5768749998},{"$f":"D40/E40","v":1.3500209405188277},"VÁLIDO"]
[null,null,"UBERLÂNDIA",{"$f":"G28","v":2399378.5768749998},{"$f":"AVERAGE(D40)","v":3239211.3230135133},{"$f":"D41/E41","v":0.74072925092235176},"VÁLIDO"]
[null,null,"TERESINA",{"$f":"G29","v":4144384.4566796878},{"$f":"AVERAGE(D40:D41)","v":2819294.9499442568},1.4700074061997772,"EXCESSIVO","DESCARTADO"]
[null,null,"** FONTE: https://www.stj.jus.br/publicacaoinstitucional/index.php/MOP/article/view/3495/3618"]
[]
[null,null,null,"Município","VALOR DA ETAPA II PORTO ALEGRE (103.750 pontos)","NOTA: Faz a média dos valores considerados válidos nos demais municípios, já proporcionalizados para o tamanho do parque de IP de POA, e o atribui para a Etapa II de Porto Alegre"]
[null,null,null,"BELO HORIZONTE",{"$f":"D40","v":3239211.3230135133}]
[null,null,null,"UBERLÂNDIA",{"$f":"D41","v":2399378.5768749998}]
[null,null,null,"TERESINA",{"$f":"D42","v":4144384.4566796878},"DESCARTADO"]
[null,null,null,"Valor médio Etapa II:",{"$f":"TRUNC(AVERAGE(E46:E47),2)","v":2819294.94}]
[null,null,null,"Valor da Etapa II (POA):",{"$f":"E49","v":2819294.94}]

{"sheet":"MEM CÁLCULO ETAPA III","index":3,"n_rows":74,"n_cols":10,"rows_kept":74,"cut":false,"hidden":false,"merged":[[16,2,16,9],[1,1,1,10],[2,1,2,10],[5,1,5,8],[8,1,8,10],[10,1,10,10],[49,5,49,7],[18,1,18,10],[20,6,20,7],[25,7,25,9],[26,5,28,5],[30,5,30,6],[35,2,35,6],[36,7,36,8],[40,2,40,6],[42,2,42,6],[43,7,43,8],[47,2,47,6],[70,5,70,6],[62,3,66,3],[70,3,73,3],[68,3,68,8],[60,1,60,10],[62,4,63,4],[62,5,62,7],[62,8,63,8]]}
[]
[null,"PREFEITURA  MUNICIPAL DE PORTO ALEGRE "]
[null,"SECRETARIA MUNICIPAL DE SERVIÇOS URBANOS"]
[]
[null,"CONTRATO:"]
[null,"CONTRATAÇÃO DE EMPRESA DE CONSULTORIA TÉCNICA ESPECIALIZADA PARA PRESTAÇÃO DE SERVIÇOS DE VERIFICAÇÃO INDEPENDENTE DO CONTRATO DE CONCESSÃO DOS SERVIÇOS DE ILUMINAÇÃO PÚBLICA"]
[null,"PPP Iluminação Pública de Porto Alegre"]
[]
[null,"MEMÓRIA DE CÁLCULO DO PREÇO/HORA DA ETAPA III - SUPORTE E ANÁLISES ECONÔMICO-FINANCEIRAS"]
[]
[null,"VALORES DE CONTRATAÇÃO DE VERIFICADOR INDEPENDENTE EM OUTROS MUNICÍPIOS"]
[]
[null,null,"Município","Modalidade e Tipo","Qtde. de pontos de IP","Vencedora","Data Contrato","Valor do CONTRATO","Atualização IPCA para Junho/2021*","Valor do CONTRATO atualizado "]
[null,null,"BELO HORIZONTE","Concorrência técnica e preço",185000,"ERNST & YOUNG","1/12/2017",6999997,0.17876439999999999,{"$f":"TRUNC(H14*(1+I14),2)","v":8251347.2599999998}]
[null,null,"UBERLÂNDIA","Concorrência menor preço",86000,"HOUER","16/04/2020",2633715,7.8803399999999996E-2,{"$f":"TRUNC(H15*(1+I15),2)","v":2841260.69}]
[null,null,"TERESINA","Concorrência técnica e preço",96000,"ERNST & YOUNG","19/11/2020",5163212,6.1023899999999999E-2,{"$f":"TRUNC(H16*(1+I16),2)","v":5478291.3300000001}]
[null,null,"*FONTE: https://www3.bcb.gov.br/CALCIDADAO/publico/exibirFormCorrecaoValores.do?method=exibirFormCorrecaoValores"]
[]
[null,"VALORES RELATIVOS AO CUSTO DO PREÇO/HORA DA ETAPA III - SUPORTE E ANÁLISES ECONÔMICO-FINANCEIRAS"]
[]
[null,null,"Município","Qtde. de pontos de IP no município avaliado","Valor do CONTRATO Atualizado no município avaliado","Valor do CONTRATO relativo à Etapa III - Suporte e Análises Econômico-Financeiras\n(18,00%)* - REFERENTE À 7.000 HORAS","NOTA: O valor da Etapa III nas contratações dos municípios pesquisados equivale à 18,00% do valor total do Contrato, e foi estimado nestes município um limite máximo de 7.000 horas de mão de obra para execução dos serviços."]
[null,null,"BELO HORIZONTE",{"$f":"$E$14","v":185000},{"$f":"$J$14","v":8251347.2599999998},{"$f":"Tabela47121722236811[[#This Row],[Valor do CONTRATO Atualizado no município avaliado]]*0.18","v":1485242.5067999999}]
[null,null,"UBERLÂNDIA",{"$f":"$E$15","v":86000},{"$f":"$J$15","v":2841260.69},{"$f":"Tabela47121722236811[[#This Row],[Valor do CONTRATO Atualizado no município avaliado]]*0.18","v":511426.92419999995}]
[null,null,"TERESINA",{"$f":"$E$16","v":96000},{"$f":"$J$16","v":5478291.3300000001},{"$f":"Tabela47121722236811[[#This Row],[Valor do CONTRATO Atualizado no município avaliado]]*0.18","v":986092.43940000003}]
[]
[null,null,"Município","Qtde. de pontos de IP no município avaliado","Valor do CONTRATO relativo à Etapa III no município avaliado","Qtde. de pontos de IP em PORTO ALEGRE","Proporcionalização do Valor da Etapa III nos municípios avaliados considerando a quantidade de pontos de IP de PORTO ALEGRE (103.750 pontos)","\nNOTA: Nesta coluna são calculadas as previsões de valores da Etapa III para PORTO ALEGRE, considerando os valores da Etapa III dos municípios avaliados e a proporção da dimensão do parque de POA em relação aos demais municípios."]
[null,null,"BELO HORIZONTE",{"$f":"$E$14","v":185000},{"$f":"F22","v":1485242.5067999999},103750,{"$f":"E27*($F$27/D27)","v":832940.05448918918}]
[null,null,"UBERLÂNDIA",{"$f":"$E$15","v":86000},{"$f":"F23","v":511426.92419999995},null,{"$f":"E28*($F$27/D28)","v":616983.0626249999}]
[null,null,"TERESINA",{"$f":"$E$16","v":96000},986092.43940000003,null,1065698.8602890626]
[]
[null,null,"Município","Proporcionalização do Valor da Etapa III nos municípios avaliados considerando a quantidade de pontos de IP de PORTO ALEGRE (103.750 pontos)","Valor por HORA relativo à Etapa III - Suporte e Análises Econômico-Financeiras no município avaliado (considerando 7.000 horas)","NOTA: Nos municípios avaliados foi adotado uma quantidade de 7.000 horas de mão de obra para execução dos serviços da Etapa III."]
[null,null,"BELO HORIZONTE",{"$f":"G27","v":832940.05448918918},{"$f":"Tabela471217222368912[[#This Row],[Proporcionalização do Valor da Etapa III nos municípios avaliados considerando a quantidade de pontos de IP de PORTO ALEGRE (103.750 pontos)]]/7000","v":118.99143635559845}]
[null,null,"UBERLÂNDIA",{"$f":"G28","v":616983.0626249999},{"$f":"Tabela471217222368912[[#This Row],[Proporcionalização do Valor da Etapa III nos municípios avaliados considerando a quantidade de pontos de IP de PORTO ALEGRE (103.750 pontos)]]/7000","v":88.140437517857123}]
[null,null,"TERESINA",{"$f":"G29","v":1065698.8602890626},{"$f":"Tabela471217222368912[[#This Row],[Proporcionalização do Valor da Etapa III nos municípios avaliados considerando a quantidade de pontos de IP de PORTO ALEGRE (103.750 pontos)]]/7000","v":152.24269432700893}]
[]
[null,null,"AVALIAÇÃO DOS PREÇOS EXCESSIVAMENTE ELEVADOS**"]
[null,null,"Município","Valor por HORA relativo à Etapa III - Suporte e Análises Econômico-Financeiras no município avaliado (considerando 7.000 horas)","Média dos demais valores","Percentual em relação à média dos demais preços","Avaliação dos preços EXCESSIVAMENTE ELEVADOS considerando metodologia demonstrada em orientação do STJ**","NOTA: Compara a cotação em análise em relação às médias das demais cotações e a descarta se o resultado for  superior a 30% da média dos demais valores "]
[null,null,"BELO HORIZONTE",{"$f":"$E$32","v":118.99143635559845},{"$f":"AVERAGE(D39:D40)","v":120.19156592243303},{"$f":"D38/E38","v":0.99001486038039399},"VÁLIDO"]
[null,null,"UBERLÂNDIA",{"$f":"$E$33","v":88.140437517857123},{"$f":"AVERAGE(D38,D40)","v":135.61706534130369},{"$f":"D39/E39","v":0.6499214335307768},"VÁLIDO"]
[null,null,"TERESINA",{"$f":"$E$34","v":152.24269432700893},{"$f":"AVERAGE(D38:D39)","v":103.56593693672778},1.4700074061997774,"EXCESSIVO","DESCARTADO"]
[null,null,"** FONTE: https://www.stj.jus.br/publicacaoinstitucional/index.php/MOP/article/view/3495/3618"]
[]
[null,null,"AVALIAÇÃO DOS PREÇOS INEXEQUÍVEIS**"]
[null,null,"Município","Valor por HORA relativo à Etapa III - Suporte e Análises Econômico-Financeiras no município avaliado (considerando 7.000 horas)","Média dos demais valores","Percentual em relação à média dos demais preços","Avaliação dos preços INEXEQUÍVEIS considerando metodologia demonstrada em orientação do STJ**","NOTA: Compara a cotação em análise em relação às médias das demais cotações e a descarta se o resultado for inferior a 70% da média dos demais valores "]
[null,null,"BELO HORIZONTE",{"$f":"$E$32","v":118.99143635559845},{"$f":"AVERAGE(D46)","v":88.140437517857123},{"$f":"D45/E45","v":1.3500209405188279},"VÁLIDO"]
[null,null,"UBERLÂNDIA",{"$f":"$E$33","v":88.140437517857123},{"$f":"AVERAGE(D45)","v":118.99143635559845},{"$f":"D46/E46","v":0.74072925092235165},"VÁLIDO"]
[null,null,"TERESINA",{"$f":"$E$34","v":152.24269432700893},{"$f":"AVERAGE(D45:D46)","v":103.56593693672778},1.4700074061997774,"EXCESSIVO","DESCARTADO"]
[null,null,"** FONTE: https://www.stj.jus.br/publicacaoinstitucional/index.php/MOP/article/view/3495/3618"]
[]
[null,null,null,"Município","VALOR DO PREÇO/HORA DA ETAPA III PORTO ALEGRE (103.750 pontos)","NOTA: Faz a média dos valores considerados válidos nos demais municípios, já proporcionalizados para o tamanho do parque de IP de POA, e o atribui para a Etapa III de Porto Alegre"]
[null,null,null,"BELO HORIZONTE",{"$f":"D45","v":118.99143635559845}]
[null,null,null,"UBERLÂNDIA",{"$f":"D46","v":88.140437517857123}]
[null,null,null,"TERESINA",{"$f":"D47","v":152.24269432700893},"DESCARTADO"]
[null,null,null,"Valor médio do Preço Hora da Etapa III:",{"$f":"TRUNC(AVERAGE(E51:E52),2)","v":103.56}]
[null,null,null,"Valor do Preço Hora da Etapa IIII (POA):",{"$f":"E54","v":103.56}]
[]
[]
[]
[]
[]
[null,"VALORES RELATIVOS À QUANTIDADE DE HORAS DE EXECUÇÃO DOS PRODUTOS DA ETAPA III - SUPORTE E ANÁLISES ECONÔMICO-FINANCEIRAS"]
[]
[null,null,null,"COTAÇÕES DE HORAS\n(EMPRESAS DO MERCADO)","PRODUTO DA ETAPA III","QUANTIDADE DE HORAS\n(OBTIDAS COM EMPRESAS DO MERCADO)",null,null,"Avaliação das Quantidades de Horas"]
[{"$nulls":5},"MÉDIA","MEDIANA","MENOR VALOR"]
[{"$nulls":4},"RELATÓRIO ANÁLISE REEQUILÍBRIO ECONÔMICO FINANCEIRO - P23",{"$f":"'COTAÇÕES DE QUANTIDADE DE HORAS'!H16","v":638},{"$f":"'COTAÇÕES DE QUANTIDADE DE HORAS'!H17","v":704},{"$f":"'COTAÇÕES DE QUANTIDADE DE HORAS'!H18","v":160},"EXCESSIVO"]
[{"$nulls":4},"RELATÓRIO ANÁLISE PLANO DE NEGÓCIOS - P24",{"$f":"'COTAÇÕES DE QUANTIDADE DE HORAS'!H26","v":444},{"$f":"'COTAÇÕES DE QUANTIDADE DE HORAS'!H27","v":352},{"$f":"'COTAÇÕES DE QUANTIDADE DE HORAS'!H28","v":240},"EXCESSIVO"]
[{"$nulls":4},"RELATÓRIO MODELAGEM FINANCEIRA - P25",{"$f":"'COTAÇÕES DE QUANTIDADE DE HORAS'!H36","v":521.33333333333337},{"$f":"'COTAÇÕES DE QUANTIDADE DE HORAS'!H37","v":620},{"$f":"'COTAÇÕES DE QUANTIDADE DE HORAS'!H38","v":240},"EXCESSIVO"]
[]
[null,null,null,"Em análise às quantidades de horas (tabela acima) informadas pelas empresas do mercado para execução dos Produtos (RELATÓRIOS P23, P245 e P25) da Etapa III, a Área Técnica da CIP/SMSURB avaliou que as quantidades informadas pelas empresas são muito maiores que a necessidade real para a execução adequada dos referidos produtos, o que tornaria o preço unitário de cada um dos RELATÓRIOS fora da realidade de mercado.\nDesta forma, em se tratando de produtos cujas cargas horárias para execução não variam muito para diferentes escopos de objeto e que são usuais e comuns no portfólio das empresas e dos profissionais do mercado, a Área Técnica da CIP/SMSURB, na figura de profissional devidamente habilitado***, entendeu que as quantidades de horas estimadas na tabela abaixo são razoáveis para a execução satisfatória dos RELATÓRIOS a serem demandados, e implicando em preços igualmente razoáveis considerando a realidade do mercado.\n\n***Profissional Habilitado: Bruno Franke Mangoni - Administrador CIP/SMSURB - Matrícula 135.6666_1 - CRA RS-049377/O"]
[]
[null,null,null,"COTAÇÕES DE HORAS\n(ESTIMATIVA ÁREA TÉCNICA CIP/SMSURB)","PRODUTO DA ETAPA III","QUANTIDADE DE HORAS ESTIMADAS PELA ÁREA TÉCNICA DA CIP/SMSURB - ADMINSTRAÇÃO"]
[{"$nulls":4},"RELATÓRIO ANÁLISE REEQUILÍBRIO ECONÔMICO FINANCEIRO - P23",32,"Horas"]
[{"$nulls":4},"RELATÓRIO ANÁLISE PLANO DE NEGÓCIOS - P24",18,"Horas"]
[{"$nulls":4},"RELATÓRIO MODELAGEM FINANCEIRA - P25",26,"Horas"]

{"sheet":"Tabela Resumo Etapa III","index":4,"n_rows":10,"n_cols":8,"rows_kept":10,"cut":false,"hidden":false,"merged":[[9,1,9,6],[8,1,8,6],[1,1,1,6]]}
[]
[null,"TABELA RESUMO DOS PRODUTOS PASSÍVEIS DE DEMANDA NA ETAPA III - SUPORTE E ANÁLISES ECONÔMICO-FINANCEIRAS"]
["Item do Projeto Básico","RELATÓRIOS A SEREM SOLICITADOS NA ETAPA III","ESTIMATIVA DE QUANTIDADE DE RELATÓRIOS PARA 60 MESES","QUANTIDADE INDIVIDUAL DE HORAS DOS RELATÓRIOS*","VALOR POR HORA RELATIVO À ETAPA III **","VALOR UNITÁRIO PARA O RELATÓRIO","VALOR TOTAL PARA O RELATÓRIO"]
["ITEM 7.2.3\na. Realizar a gestão de pleitos relacionados às reivindicações que geram a necessidade de discussões referentes a reequilíbrios econômico-financeiros, suportando as decisões do CONTRATANTE por meio de análises técnicas e econômico-financeiras fundamentadas, sempre baseadas em metodologias objetivas e alinhadas previamente junto aos interessados;\n\nITEM 7.3.3\nc) Fornecer parecer técnico para subsidiar decisão do CONTRATANTE sobre pedido da CONCESSIONÁRIA para recomposição de seu equilíbrio econômico-financeiro: 30 (trinta) dias a partir do recebimento da manifestação da CONCESSIONÁRIA;\nd) Realizar a gestão de pleitos relacionados às reivindicações que geram a necessidade de discussões referentes a reequilíbrios econômico-financeiros, suportando as decisões do CONTRATANTE por meio de análises técnicas e econômico-financeiras fundamentadas;\ne) Analisar o cenário que originou a reinvindicação de REVISÃO EXTRAORDINÁRIA (para fins de recomposição do seu equilíbrio econômico-financeiro) frente aos termos contratuais que se aplicam ao pleito, gerando, ao final, um parecer técnico. O parecer técnico deverá dar suporte à análise econômico-financeira, na qual o gestor do CONTRATO DE\nCONCESSÃO e a CONTRATADA deverão avaliar e dimensionar, caso exista, o impacto econômico-financeiro do pleito no projeto;\n","RELATÓRIO ANÁLISE REEQUILÍBRIO ECONÔMICO FINANCEIRO - P23",{"$f":"'ORÇ EDITAL'!G24","v":5},{"$f":"'MEM CÁLCULO ETAPA III'!F72","v":32},{"$f":"'MEM CÁLCULO ETAPA III'!$E$55","v":103.56},{"$f":"E4*D4","v":3313.92},{"$f":"C4*F4","v":16569.599999999999}]
["ITEM 3\nh) Avaliação dos Planos de Negócio apresentados pela CONCESSIONÁRIA para obtenção de receitas acessórias, a fim de subsidiar decisão do PODER CONCEDENTE quanto à autorização da exploração das atividades relacionadas, observando viabilidade e atendimento aos requisitos do CONTRATO DE CONCESSÃO, inclusive o percentual de compartilhamento das receitas.\n\nITEM 7.2.3\nc. Realizar análise do Plano de Negócios da CONCESSIONÁRIA referente às ATIVIDADES RELACIONADAS e propostas de compartilhamento das RECEITAS ACESSÓRIAS, a fim de subsidiar as decisões do CONTRATANTE;","RELATÓRIO ANÁLISE PLANO DE NEGÓCIOS - P24",{"$f":"'ORÇ EDITAL'!G25","v":5},{"$f":"'MEM CÁLCULO ETAPA III'!F73","v":18},{"$f":"'MEM CÁLCULO ETAPA III'!$E$55","v":103.56},{"$f":"E5*D5","v":1864.08},{"$f":"C5*F5","v":9320.4}]
["ITEM 3\ng)  Realização de modelagens financeiras de interesse do Município relacionadas à concessão;\n\nITEM 7.2.3\nb. Realizar modelagens financeiras referentes ao aumento ou redução de escopo do contrato de concessão;\n...\nd. Realizar modelagens financeiras de interesse do CONTRATANTE, relacionadas à concessão.\n\nITEM 7.3.3\na) Realizar modelagens financeiras de interesse do CONTRATANTE relacionadas à CONCESSÃO;\nb) Realizar modelagens financeiras referentes ao aumento ou redução de escopo do CONTRATO DE CONCESSÃO;\n\n","RELATÓRIO MODELAGEM FINANCEIRA - P25",{"$f":"'ORÇ EDITAL'!G26","v":2},{"$f":"'MEM CÁLCULO ETAPA III'!F74","v":26},{"$f":"'MEM CÁLCULO ETAPA III'!$E$55","v":103.56},{"$f":"E6*D6","v":2692.56},{"$f":"C6*F6","v":5385.12}]
[{"$nulls":6},{"$f":"SUM(G4:G6)","v":31275.119999999999},"CUSTO REFERENTE À ETAPA 3 DO CONTRATO"]
[]
[null,"* NOTA 1: Quantidade de Horas obtido na aba \"MEM CÁLCULO ETAPA III\""]
[null,"** NOTA 2: Cálculo do Custo unitário por Hora obtido na aba \"MEM CÁLCULO ETAPA III\""]

{"sheet":"COMPOSIÇÕES","index":5,"n_rows":27,"n_cols":8,"rows_kept":27,"cut":false,"hidden":false,"merged":[[25,1,25,7],[26,1,26,7],[1,1,1,7],[2,1,2,7],[5,1,5,7],[8,1,8,7],[10,1,11,1],[10,2,11,2],[15,1,16,1],[20,1,21,1],[15,2,16,2],[20,2,21,2]]}
[]
[null,"PREFEITURA  MUNICIPAL DE PORTO ALEGRE "]
[null,"SECRETARIA MUNICIPAL DE SERVIÇOS URBANOS"]
[]
[null,"CONTRATO:"]
[null,"CONTRATAÇÃO DE EMPRESA DE CONSULTORIA TÉCNICA ESPECIALIZADA PARA PRESTAÇÃO DE SERVIÇOS DE VERIFICAÇÃO INDEPENDENTE DO CONTRATO DE CONCESSÃO DOS SERVIÇOS DE ILUMINAÇÃO PÚBLICA"]
[null,"PPP Iluminação Pública de Porto Alegre"]
[]
[null,"COMPOSIÇÕES DE CUSTO UNITÁRIO"]
[]
[null,"COMPOSIÇÃO","COMP P23","RELATÓRIO ANÁLISE REEQUILÍBRIO ECONÔMICO FINANCEIRO  (PRODUTO P23)","UND","QTDE DE HORAS*","CUSTO UNIT**","CUSTO TOTAL"]
[null,null,null,"QUANTIDADE DE HORAS DE MÃO DE OBRA PARA EXECUÇÃO DO PRODUTO \"RELATÓRIO ANÁLISE REEQUILÍBRIO ECONÔMICO FINANCEIRO\" (PRODUTO P23)","H",{"$f":"'MEM CÁLCULO ETAPA III'!F72","v":32},{"$f":"'MEM CÁLCULO ETAPA III'!$E$55","v":103.56},{"$f":"F12*G12","v":3313.92}]
[{"$nulls":6},"TOTAL:",{"$f":"TRUNC(SUM(H12:H12),2)","v":3313.92}]
[]
[]
[null,"COMPOSIÇÃO","COMP P24","RELATÓRIO ANÁLISE PLANO DE NEGÓCIOS (PRODUTO P24)","UND","QTDE DE HORAS*","CUSTO UNIT**","CUSTO TOTAL"]
[null,null,null,"QUANTIDADE DE HORAS DE MÃO DE OBRA PARA EXECUÇÃO DO PRODUTO \"RELATÓRIO ANÁLISE PLANO DE NEGÓCIOS\" (PRODUTO P24)","H",{"$f":"'MEM CÁLCULO ETAPA III'!F73","v":18},{"$f":"'MEM CÁLCULO ETAPA III'!$E$55","v":103.56},{"$f":"F17*G17","v":1864.08}]
[{"$nulls":6},"TOTAL:",{"$f":"TRUNC(SUM(H17:H17),2)","v":1864.08}]
[]
[]
[null,"COMPOSIÇÃO","COMP P25","RELATÓRIO MODELAGEM FINANCEIRA (PRODUTO P25)","UND","QTDE DE HORAS*","CUSTO UNIT**","CUSTO TOTAL"]
[null,null,null,"QUANTIDADE DE HORAS DE MÃO DE OBRA PARA EXECUÇÃO DO PRODUTO \"RELATÓRIO MODELAGEM FINANCEIRA\" (PRODUTO P25)","H",{"$f":"'MEM CÁLCULO ETAPA III'!F74","v":26},{"$f":"'MEM CÁLCULO ETAPA III'!$E$55","v":103.56},{"$f":"F22*G22","v":2692.56}]
[{"$nulls":6},"TOTAL:",{"$f":"TRUNC(SUM(H22:H22),2)","v":2692.56}]
[]
[]
[null,"* NOTA 1: Quantidade de Horas obtido na aba \"MEM CÁLCULO ETAPA III\""]
[null,"** NOTA 2: Cálculo do Custo unitário por Hora obtido na aba \"MEM CÁLCULO ETAPA III\""]

{"sheet":"COTAÇÕES DE QUANTIDADE DE HORAS","index":6,"n_rows":38,"n_cols":9,"rows_kept":38,"cut":false,"hidden":false,"merged":[[20,2,20,7],[30,2,30,7],[1,1,1,7],[2,1,2,7],[5,1,5,7],[8,1,8,7],[10,2,10,7]]}
[]
[null,"PREFEITURA  MUNICIPAL DE PORTO ALEGRE "]
[null,"SECRETARIA MUNICIPAL DE SERVIÇOS URBANOS"]
[]
[null,"CONTRATO:"]
[null,"CONTRATAÇÃO DE EMPRESA DE CONSULTORIA TÉCNICA ESPECIALIZADA PARA PRESTAÇÃO DE SERVIÇOS DE VERIFICAÇÃO INDEPENDENTE DO CONTRATO DE CONCESSÃO DOS SERVIÇOS DE ILUMINAÇÃO PÚBLICA"]
[null,"PPP Iluminação Pública de Porto Alegre"]
[]
[null,"COTAÇÕES DE QUANTIDADES DE HORAS PARA ELABORAÇÃO DOS RELATÓRIOS DA ETAPA III"]
[]
[null,"COT P23","QUANTIDADE DE HORAS DE MÃO DE OBRA PARA EXECUÇÃO DO PRODUTO \"RELATÓRIO ANÁLISE REEQUILÍBRIO ECONÔMICO FINANCEIRO\" (PRODUTO P23)"]
[null,null,"Fornecedor","CNPJ","Contato","Telefone","Data da cotação","Quantidade\n(Horas)"]
[null,"a)","HOUER","22.111.570/0001-91","Vladimir Azevedo","(37) 99987-6347","2021-08-04",704]
[null,"b)","ERNST & YOUNG","59.527.788/0001-31","Eduardo Augusto","(61) 2104 0112","2021-08-03",1050]
[null,"c)","MACIEL CONSULTORES","10.757.529/0001-08","André Gaspar","51 4000.1364","2021-07-30",160]
[{"$nulls":6},"Média:",{"$f":"AVERAGE(H13:H15)","v":638},"Horas"]
[{"$nulls":6},"Mediana:",{"$f":"MEDIAN(H13:H15)","v":704},"Horas"]
[{"$nulls":6},"Menor valor:",{"$f":"SMALL(H13:H15,1)","v":160},"Horas"]
[]
[]
[null,"COT P24","QUANTIDADE DE HORAS DE MÃO DE OBRA PARA EXECUÇÃO DO PRODUTO \"RELATÓRIO ANÁLISE PLANO DE NEGÓCIOS\" (PRODUTO P24)"]
[null,null,"Fornecedor","CNPJ","Contato","Telefone","Data da cotação","Quantidade\n(Horas)"]
[null,"a)","HOUER","22.111.570/0001-91","Vladimir Azevedo","(37) 99987-6347","2021-08-04",352]
[null,"b)","ERNST & YOUNG","59.527.788/0001-31","Eduardo Augusto","(61) 2104 0112","2021-08-03",740]
[null,"c)","MACIEL CONSULTORES","10.757.529/0001-08","André Gaspar","51 4000.1364","2021-07-30",240]
[{"$nulls":6},"Média:",{"$f":"AVERAGE(H23:H25)","v":444},"Horas"]
[{"$nulls":6},"Mediana:",{"$f":"MEDIAN(H23:H25)","v":352},"Horas"]
[{"$nulls":6},"Menor valor:",{"$f":"SMALL(H23:H25,1)","v":240},"Horas"]
[]
[]
[null,"COT P25","QUANTIDADE DE HORAS DE MÃO DE OBRA PARA EXECUÇÃO DO PRODUTO \"RELATÓRIO MODELAGEM FINANCEIRA\" (PRODUTO P25)"]
[null,null,"Fornecedor","CNPJ","Contato","Telefone","Data da cotação","Quantidade\n(Horas)"]
[null,"a)","HOUER","22.111.570/0001-91","Vladimir Azevedo","(37) 99987-6347","2021-08-04",704]
[null,"b)","ERNST & YOUNG","59.527.788/0001-31","Eduardo Augusto","(61) 2104 0112","2021-08-03",620]
[null,"c)","MACIEL CONSULTORES","10.757.529/0001-08","André Gaspar","51 4000.1364","2021-07-30",240]
[{"$nulls":6},"Média:",{"$f":"AVERAGE(H33:H35)","v":521.33333333333337},"Horas"]
[{"$nulls":6},"Mediana:",{"$f":"MEDIAN(H33:H35)","v":620},"Horas"]
[{"$nulls":6},"Menor valor:",{"$f":"SMALL(H33:H35,1)","v":240},"Horas"]